bitfinex-derivatives/quotes_ETHF0:USTF0_20260120
["timestamp","ask_amount","ask_price","bid_price","bid_amount"]
[1768926853191,0.00251431,3021.8,3020.2,5.624]
[1768926853392,0.00251431,3021.8,3020.2,5.62708201]
[1768926854089,3.66704483,3021.8,3020.2,0.00308201]
[1768926854299,3.66453052,3021.6,3020.2,0.00308201]
[1768926854595,3.66453052,3021.4,3020.2,0.00308201]
[1768926854888,3.38193769,3021.2,3020.2,0.00308201]
[1768926855100,3.38193769,3021.0,3018.9,4.37777]
[1768926855300,3.38193769,3021.0,3019.0,0.16577]
[1768926855795,0.16567,3020.9,3019.0,0.16577]
[1768926855996,3.54760769,3020.8,3019.0,0.16912452]
[1768926859295,3.54760769,3020.8,3019.0,0.00335452]
[1768926862594,3.38193769,3020.8,3019.0,0.00335452]
[1768926862803,3.38193769,3020.8,3019.1,3.70935122]
[1768926863398,0.17062157,3021.2,3019.4,0.16575]
[1768926863591,0.00497157,3021.2,3019.5,0.16574]
[1768926863792,0.00497157,3021.2,3019.6,3.70935122]
[1768926864697,0.00497157,3021.2,3019.9,0.16572]
[1768926865500,0.00251431,3021.8,3020.1,5.48767874]
[1768926865701,3.384452,3021.8,3020.2,0.00497157]
[1768926865994,3.550072,3021.8,3020.2,0.00497157]
[1768926866201,3.38193769,3021.6,3020.2,0.00497157]
[1768926867601,0.16564,3021.4,3020.2,0.00497157]
[1768926867801,3.38193769,3021.3,3020.2,0.00497157]
[1768926874205,0.47546937,3021.2,3020.2,0.00497157]
[1768926874397,0.47546937,3021.1,3020.2,0.00497157]
[1768926874604,0.47546937,3021.0,3020.2,0.00497157]
[1768926874799,0.47546937,3020.9,3020.2,0.00497157]
[1768926875007,3.38193769,3021.3,3020.2,0.00497157]
[1768926875008,0.47546937,3020.8,3020.2,0.00497157]
[1768926875203,3.38193769,3021.2,3020.2,0.00497157]
[1768926875398,3.38193769,3020.7,3019.8,4.1596217]
[1768926875603,3.38193769,3021.2,3019.8,4.1596217]
[1768926875807,3.85733967,3021.1,3019.8,4.1596217]
[1768926876012,3.85733967,3021.0,3019.8,4.1596217]
[1768926876318,0.47540198,3020.9,3019.8,4.1596217]
[1768926876519,0.47540198,3020.8,3019.8,4.1596217]
[1768926876820,0.47540198,3020.7,3019.7,4.1596217]
[1768926877120,0.47540198,3020.6,3019.7,4.1596217]
[1768926877312,0.47540198,3020.5,3019.7,4.1596217]
[1768926877512,0.47540198,3020.4,3019.4,4.1596217]
[1768926877713,0.47540198,3020.3,3019.4,4.1596217]
[1768926877914,3.38193769,3021.0,3019.4,4.1596217]
[1768926878113,0.00251431,3021.8,3019.4,4.1596217]
[1768926878114,3.38193769,3020.8,3019.4,4.1596217]
[1768926878414,3.38193769,3020.6,3019.4,4.1596217]
[1768926878616,3.85704683,3020.5,3019.3,4.1596217]
[1768926878925,3.85704683,3020.4,3019.3,4.1596217]
[1768926879221,0.47510914,3020.3,3019.3,4.1596217]
[1768926879418,0.47510914,3020.2,3019.3,4.1596217]
[1768926879607,3.38193769,3020.4,3019.3,4.1596217]
[1768926879813,0.47478628,3020.3,3019.3,4.1596217]
[1768926880007,0.47478628,3020.2,3019.3,4.1596217]
[1768926880219,3.38193769,3020.4,3019.3,4.1596217]
[1768926880419,0.47476129,3020.3,3019.3,4.1596217]
[1768926880720,0.47476129,3020.2,3019.3,4.1596217]
[1768926880916,3.38193769,3020.4,3019.3,4.1596217]
[1768926881118,0.47477794,3020.3,3019.3,4.1596217]
[1768926881317,0.47477794,3020.2,3019.3,4.1596217]
[1768926881518,3.38193769,3020.4,3019.3,4.1596217]
[1768926881720,0.4747743,3020.3,3019.3,4.1596217]
[1768926882017,0.4747743,3020.2,3019.3,4.1596217]
[1768926882217,3.38193769,3020.4,3019.3,4.1596217]
[1768926882520,0.47476558,3020.3,3019.3,4.1596217]
[1768926882819,0.47476558,3020.2,3019.3,4.1596217]
[1768926883023,3.38193769,3020.4,3019.3,4.1596217]
[1768926883215,0.47483739,3020.3,3019.3,4.1596217]
[1768926883415,0.47483739,3020.2,3019.2,4.1596217]
[1768926883616,0.47483739,3020.1,3019.2,4.1596217]
[1768926883815,3.38193769,3020.4,3019.2,4.1596217]
[1768926884022,0.47482089,3020.3,3019.2,4.1596217]
[1768926884220,0.47482089,3020.2,3019.1,4.1596217]
[1768926884722,0.47482089,3020.2,3019.2,4.1596217]
[1768926885827,4.01643541,3020.2,3019.2,4.1596217]
[1768926886024,0.47482089,3020.1,3019.1,4.1596217]
[1768926886721,4.01643541,3020.1,3019.0,0.00335452]
[1768926886918,4.01643541,3020.0,3019.0,0.00335452]
[1768926887119,3.54161452,3019.8,3019.0,0.00335452]
[1768926887319,0.47482089,3019.7,3019.0,0.00335452]
[1768926887521,0.47482089,3019.6,3019.0,0.00335452]
[1768926887734,0.47482089,3019.5,3019.0,0.00335452]
[1768926887932,0.47451933,3019.4,3018.5,4.1596217]
[1768926888226,4.01603594,3019.3,3018.3,4.1596217]
[1768926888417,0.47442142,3019.2,3018.1,6.4696217]
[1768926888613,0.47441193,3019.1,3018.1,4.1596217]
[1768926888825,0.47441193,3019.0,3018.1,0.00275657]
[1768926889027,3.54161452,3019.3,3018.1,0.00275657]
[1768926889228,0.47412654,3019.2,3018.1,0.00275657]
[1768926889430,3.54161452,3019.3,3018.1,0.00275657]
[1768926889629,0.47413363,3019.2,3018.1,0.00275657]
[1768926889825,0.47413363,3019.1,3018.1,0.00275657]
[1768926890024,4.01574815,3019.0,3018.1,0.00275657]
[1768926890331,4.01574815,3018.9,3017.8,4.1596217]
[1768926890632,4.01574815,3018.8,3017.3,4.09107689]
[1768926890819,4.01574815,3018.7,3017.3,4.09107689]
[1768926891025,0.47413363,3018.6,3017.3,4.09107689]
[1768926891226,3.54161452,3018.7,3017.3,4.09107689]
[1768926891430,3.70737452,3019.2,3017.3,7.8251526]
[1768926891640,0.47028356,3019.1,3018.1,1.78007689]
[1768926891928,0.00400722,3019.6,3018.2,2.312]
[1768926892124,0.00400722,3019.6,3018.5,1.78007689]
[1768926892332,0.00400722,3019.6,3018.5,5.5141526]
[1768926892921,0.00400722,3019.6,3018.6,2.312]
[1768926894929,3.54161452,3020.7,3018.9,1.78007689]
[1768926895122,4.0117803,3020.6,3018.9,1.78007689]
[1768926895327,4.0117803,3020.5,3018.9,1.78007689]
[1768926895528,4.0117803,3020.4,3018.6,6.04607571]
[1768926895727,0.47016578,3020.3,3018.6,6.04607571]
[1768926895928,4.01434557,3020.3,3018.6,3.73407571]
[1768926896136,0.47016578,3020.2,3018.7,2.312]
[1768926896330,0.47016578,3020.2,3018.9,1.78007689]
[1768926896928,0.47016578,3020.2,3018.7,2.47779]
[1768926898234,4.0117803,3020.2,3018.7,2.312]
[1768926898433,0.47016578,3020.1,3018.7,2.312]
[1768926899136,4.0117803,3020.1,3018.7,2.312]
[1768926899341,0.47016578,3020.0,3018.7,2.312]
[1768926900342,4.0117803,3020.0,3018.3,4.1596217]
[1768926900637,0.47016578,3019.9,3018.5,1.78007689]
[1768926900830,0.00256527,3020.3,3018.9,5.5141526]
[1768926901025,0.47065558,3020.2,3018.9,5.5141526]
[1768926901232,0.00256527,3020.3,3018.9,5.5141526]
[1768926901538,0.00256527,3020.3,3018.4,2.311]
[1768926901539,0.47081486,3020.2,3019.3,1.78007689]
[1768926901745,0.00256527,3020.3,3019.3,4.09107689]
[1768926901928,0.00256527,3020.3,3018.8,4.1596217]
[1768926902129,4.01241019,3020.2,3018.6,4.1596217]
[1768926902428,4.01241019,3020.1,3018.7,2.311]
[1768926902635,0.00256527,3020.3,3018.9,1.78007689]
[1768926902837,0.47097152,3020.2,3019.0,3.73407571]
[1768926903131,3.54161452,3020.0,3018.7,6.4706217]
[1768926903336,0.00256527,3020.3,3018.7,6.4706217]
[1768926903536,0.4710981,3020.2,3018.7,6.4706217]
[1768926903742,0.4710981,3020.1,3018.7,6.4706217]
[1768926904043,0.4710981,3020.0,3018.9,1.78007689]
[1768926904236,0.00256527,3020.3,3018.9,1.78007689]
[1768926904435,0.47127678,3020.2,3018.9,1.78007689]
[1768926904631,3.54161452,3021.1,3019.3,1.78007689]
[1768926904832,3.54161452,3021.1,3019.7,1.78007689]
[1768926905132,3.70723452,3021.8,3019.7,1.78007689]
[1768926905330,3.70723452,3021.8,3020.1,1.78007689]
[1768926905845,3.71132345,3021.8,3020.1,1.78250671]
[1768926908445,3.54570345,3021.8,3020.1,5.51658242]
[1768926910646,0.00408893,3021.8,3020.5,1.78007689]
[1768926910842,0.00408893,3021.8,3020.5,4.08907689]
[1768926911240,0.00408893,3021.8,3020.5,2.309]
[1768926911442,3.54570345,3021.8,3020.5,2.309]
[1768926911640,3.71132345,3021.8,3020.1,0.00242982]
[1768926911844,3.54161452,3021.6,3020.1,0.00242982]
[1768926912045,3.54161452,3021.6,3020.1,1.78250671]
[1768926912246,0.00408893,3021.8,3020.2,3.73407571]
[1768926912446,0.00408893,3021.8,3020.2,3.89977571]
[1768926912847,3.54570345,3021.8,3020.2,3.73407571]
[1768926913048,3.54570345,3021.8,3020.1,1.78250671]
[1768926914352,3.71132345,3021.8,3020.2,2.308]
[1768926915245,3.48988259,3021.6,3020.1,0.00242982]
[1768926915443,3.65551259,3021.6,3020.1,0.00242982]
[1768926916151,3.65551259,3021.6,3020.1,1.78250671]
[1768926916745,0.46648605,3021.5,3020.1,1.78250671]
[1768926916944,0.46648605,3021.4,3020.1,1.78250671]
[1768926917149,3.48988259,3021.5,3020.1,1.78250671]
[1768926917446,0.46637755,3021.4,3020.1,1.78250671]
[1768926917648,3.48988259,3021.5,3020.1,1.78250671]
[1768926917944,0.46632643,3021.4,3020.1,0.00242982]
[1768926918143,3.48988259,3021.5,3020.1,0.00242982]
[1768926918346,3.49397152,3021.8,3020.1,1.94821671]
[1768926918551,0.46625306,3021.7,3020.1,1.78250671]
[1768926918753,0.46625306,3021.6,3020.1,1.78250671]
[1768926918954,0.46625306,3021.5,3020.1,1.78250671]
[1768926919153,3.65959152,3021.8,3020.1,1.78250671]
[1768926919454,0.46637388,3021.7,3020.1,1.78250671]
[1768926919642,3.95625647,3021.6,3020.1,1.78250671]
[1768926919845,3.95625647,3021.5,3020.1,1.78250671]
[1768926920044,0.46663291,3021.4,3020.1,1.78250671]
[1768926920251,3.48988259,3021.5,3020.1,1.78250671]
[1768926920448,0.4666174,3021.4,3020.1,1.78250671]
[1768926920648,3.48988259,3021.5,3020.1,1.78250671]
[1768926920848,0.46661672,3021.4,3020.1,1.78250671]
[1768926921049,0.46700944,3021.3,3020.1,0.00242982]
[1768926921249,0.46700944,3021.2,3020.1,0.00242982]
[1768926921451,3.48988259,3021.5,3020.1,0.00242982]
[1768926921652,0.46697292,3021.4,3020.1,0.00242982]
[1768926921853,0.46697292,3021.3,3020.1,0.00242982]
[1768926922049,0.46697292,3021.2,3020.1,0.00242982]
[1768926922244,3.48988259,3021.5,3020.1,0.00242982]
[1768926922445,0.46715189,3021.4,3020.1,0.00242982]
[1768926922650,0.46715189,3021.3,3020.1,0.00242982]
[1768926922852,0.46715189,3021.2,3020.1,0.00242982]
[1768926923058,3.65552259,3021.5,3020.1,0.00242982]
[1768926923363,3.48988259,3021.3,3020.1,0.00242982]
[1768926923562,3.95710303,3021.2,3020.1,0.00242982]
[1768926923859,3.95710303,3021.1,3020.1,0.00242982]
[1768926924057,3.95720368,3021.0,3019.6,2.305]
[1768926924261,3.95720368,3021.0,3019.5,4.1596217]
[1768926924262,3.48988259,3020.8,3019.5,4.1596217]
[1768926924459,0.46732109,3020.7,3019.3,3.313]
[1768926924661,3.95720368,3020.7,3019.3,3.313]
[1768926924861,0.46732109,3020.6,3019.3,3.313]
[1768926925260,0.46732109,3020.6,3019.3,3.31565021]
[1768926926765,0.46732109,3020.6,3019.3,0.00265021]
[1768926927464,3.95720368,3020.6,3019.3,0.00265021]
[1768926927764,0.46732109,3020.5,3019.3,0.00265021]
[1768926929165,0.46732109,3020.5,3019.3,1.7827271]
[1768926929571,0.46810612,3020.4,3019.3,1.7827271]
[1768926929773,0.16567,3020.9,3019.3,1.7827271]
[1768926929964,0.46810488,3020.8,3019.3,1.7827271]
[1768926930159,0.46810488,3020.7,3019.3,1.9484771]
[1768926930364,0.46810488,3020.6,3019.7,1.78007689]
[1768926930673,3.65551259,3021.5,3019.7,1.78007689]
[1768926930860,1.42209359,3021.4,3019.7,1.78007689]
[1768926931171,0.46802691,3021.3,3019.8,2.304]
[1768926931370,0.46802691,3021.2,3019.8,2.304]
[1768926931566,0.46802691,3021.1,3019.8,2.304]
[1768926931772,0.46802691,3021.0,3019.8,2.304]
[1768926931974,3.65551259,3021.5,3019.8,2.304]
[1768926932169,3.95804024,3021.4,3019.8,2.304]
[1768926932476,3.95804024,3021.3,3019.8,2.304]
[1768926932774,0.46815765,3021.2,3019.8,2.304]
[1768926934372,0.46815765,3021.2,3019.9,0.16572]
[1768926934569,0.46815765,3021.2,3020.0,0.16571]
[1768926934778,0.00408893,3021.8,3020.2,5.49687701]
[1768926935069,0.46879862,3021.7,3020.6,1.78007689]
[1768926935272,0.00408893,3021.8,3020.6,1.94575689]
[1768926935470,3.48988259,3022.7,3021.0,1.78007689]
[1768926935676,0.46877037,3022.6,3021.0,4.08307689]
[1768926935972,0.46877037,3022.5,3021.0,4.08307689]
[1768926936172,0.46877037,3022.4,3021.0,4.08307689]
[1768926936374,0.46877037,3022.3,3021.0,4.24873689]
[1768926936564,0.46877037,3022.2,3021.4,1.78007689]
[1768926936768,0.00288506,3022.3,3021.4,1.78007689]
[1768926937870,0.46820142,3022.2,3020.6,1.78007689]
[1768926938075,0.46820336,3022.1,3020.7,2.302]
[1768926938275,0.00288506,3022.3,3020.7,2.302]
[1768926938474,0.46802133,3022.2,3020.7,2.46768]
[1768926938676,0.00288506,3022.3,3020.7,2.46768]
[1768926938876,0.46803432,3022.2,3020.7,2.46768]
[1768926939071,0.00288506,3022.3,3020.7,2.46768]
[1768926939278,0.46803073,3022.2,3020.7,2.46768]
[1768926939574,0.00288506,3022.3,3020.7,6.18448012]
[1768926939770,1.78007689,3023.3,3021.1,3.88245012]
[1768926939971,0.46788026,3023.2,3021.4,5.49687701]
[1768926940176,0.46788026,3023.1,3021.4,5.49687701]
[1768926940376,0.46788026,3023.0,3021.5,2.302]
[1768926940578,0.46788026,3022.9,3021.4,5.49687701]
[1768926940775,0.46788026,3022.8,3021.5,2.302]
[1768926940980,0.46788026,3022.7,3021.5,2.302]
[1768926941183,0.00236792,3022.8,3021.5,2.30455308]
[1768926941392,5.67938087,3024.4,3021.5,2.30455308]
[1768926941393,3.48988259,3023.8,3022.5,1.78007689]
[1768926941682,0.46758848,3023.7,3022.5,1.78007689]
[1768926941878,3.48988259,3024.3,3022.9,1.78007689]
[1768926942081,3.48988259,3024.8,3022.9,1.78007689]
[1768926942378,3.49391896,3024.8,3022.9,1.94563689]
[1768926942782,3.65534259,3024.7,3022.5,5.49687701]
[1768926943083,3.65534259,3024.7,3022.6,2.301]
[1768926943279,3.48988259,3024.3,3022.6,2.301]
[1768926943485,3.48988259,3024.3,3022.5,2.301]
[1768926943777,3.48988259,3024.3,3022.5,4.08107689]
[1768926944183,3.48988259,3024.3,3022.5,1.78007689]
[1768926944685,3.55154049,3023.9,3021.9,2.46561]
[1768926945277,3.55154049,3023.9,3022.0,1.78007689]
[1768926946984,3.72663341,3023.6,3021.6,1.78007689]
[1768926947178,3.72663341,3023.6,3022.0,1.78007689]
[1768926948885,3.72663341,3023.6,3021.5,5.77918308]
[1768926950480,3.72663341,3023.6,3021.7,1.7753889]
[1768926951185,3.72663341,3023.6,3021.5,0.16818308]
[1768926951783,3.72663341,3023.3,3021.5,0.00255308]
[1768926952686,3.89217341,3023.3,3021.5,0.00255308]
[1768926952987,3.72663341,3022.7,3021.5,0.00255308]
[1768926955387,3.72663341,3022.5,3020.7,0.16568]
[1768926955886,0.16557,3022.6,3020.7,0.16568]
[1768926955887,3.72663341,3022.3,3020.7,0.16568]
[1768926956388,3.73026739,3022.3,3020.7,0.16936619]
[1768926957490,3.73026739,3022.3,3020.7,0.00368619]
[1768926957688,3.89585739,3022.3,3020.7,0.00368619]
[1768926957892,3.89223341,3022.1,3020.7,0.00368619]
[1768926958189,3.72663341,3021.9,3020.7,0.00368619]
[1768926958583,3.72663341,3021.7,3020.7,0.00368619]
[1768926961782,0.26994944,3022.3,3020.7,0.00368619]
[1768926961783,3.72663341,3022.2,3020.7,0.00368619]
[1768926961991,0.46190252,3022.1,3020.7,1.77907509]
[1768926962293,0.46190252,3022.0,3020.7,1.77907509]
[1768926962591,0.00363398,3022.3,3020.9,0.16567]
[1768926962783,3.73026739,3022.3,3020.7,1.77907509]
[1768926964290,0.46222499,3022.2,3020.7,1.77907509]
[1768926964479,3.73026739,3022.3,3020.7,1.77907509]
[1768926965186,3.73026739,3022.3,3020.7,1.94475509]
[1768926966193,3.72663341,3022.0,3020.7,0.00368619]
[1768926966387,3.89224341,3022.0,3020.7,0.00368619]
[1768926967392,3.72663341,3021.8,3020.7,0.00368619]
[1768926967791,3.89226341,3021.6,3019.4,3.63540767]
[1768926968300,3.72663341,3021.4,3019.4,0.16575]
[1768926968486,3.72663341,3021.2,3019.4,0.16575]
[1768926968992,3.72663341,3021.2,3019.4,0.16963037]
[1768926969301,3.72663341,3021.1,3019.4,0.16963037]
[1768926973601,3.72663341,3021.1,3019.5,0.16574]
[1768926973796,3.72663341,3021.1,3019.4,3.47353804]
[1768926973998,3.89224341,3022.0,3019.8,0.16573]
[1768926974301,3.72663341,3021.8,3019.9,0.16572]
[1768926974501,3.72663341,3021.6,3019.9,0.16572]
[1768926974703,0.46119672,3021.5,3020.1,1.7753889]
[1768926975002,3.72663341,3021.6,3020.1,1.7753889]
[1768926976292,0.46205259,3021.5,3020.1,1.7753889]
[1768926976497,3.72663341,3021.6,3020.1,1.7753889]
[1768926976697,0.46205559,3021.5,3020.1,1.7753889]
[1768926976996,3.72663341,3021.6,3020.1,1.7753889]
[1768926977196,0.46205781,3021.5,3020.1,1.7753889]
[1768926977406,3.72663341,3021.6,3020.1,1.7753889]
[1768926977601,0.46221741,3021.5,3020.1,1.7753889]
[1768926977901,3.312,3022.2,3020.0,0.16572]
[1768926977902,4.11917462,3021.4,3020.0,0.16572]
[1768926978099,0.4621659,3021.3,3020.0,0.16572]
[1768926980201,0.4621659,3021.3,3019.7,7.3863889]
[1768926980202,3.65700872,3021.9,3020.2,1.9410889]
[1768926980409,3.65700872,3021.9,3020.2,1.7753889]
[1768926980905,0.16922398,3022.3,3020.5,0.16569]
[1768926981104,0.00363398,3022.3,3020.7,0.16567]
[1768926981312,0.00363398,3022.3,3021.0,0.16566]
[1768926983411,3.65700872,3022.9,3021.2,3.57038594]
[1768926983711,3.65700872,3022.9,3021.2,5.34577484]
[1768926984209,3.65700872,3022.9,3021.3,0.16564]
[1768926984410,3.66098532,3022.9,3021.3,0.16564]
[1768926985008,3.66098532,3022.9,3021.4,2.291]
[1768926986305,3.66098532,3022.9,3021.5,0.16563]
[1768926986604,3.65700872,3023.4,3021.7,1.7753889]
[1768926986801,3.65700872,3023.4,3021.9,0.16561]
[1768926987212,3.65700872,3023.4,3022.0,0.1656]
[1768926987509,3.66112984,3023.4,3022.1,2.29]
[1768926988510,3.66112984,3023.4,3022.1,2.4556]
[1768926989211,3.65700872,3023.9,3022.2,1.9409789]
[1768926989609,3.65700872,3023.9,3022.3,0.16559]
[1768926990111,3.6594831,3023.9,3022.2,1.7753889]
[1768926990314,3.65700872,3024.4,3022.7,1.7753889]
[1768926990613,3.65700872,3024.4,3022.9,0.16555]
[1768926991415,3.66067901,3024.4,3023.0,0.16555]
[1768926991611,3.66067901,3024.4,3023.1,5.601]
[1768926992611,3.65700872,3024.2,3022.5,3.312]
[1768926992816,3.65700872,3024.2,3022.5,5.601]
[1768926994210,3.82250872,3024.0,3021.9,3.311]
[1768926994421,3.65700872,3023.8,3022.0,2.29087251]
[1768926995712,3.65700872,3023.8,3022.0,0.00287251]
[1768926997619,3.65700872,3023.6,3022.0,0.00287251]
[1768927000020,3.65700872,3023.6,3022.0,0.16847251]
[1768927000325,3.31467029,3024.4,3022.4,0.16558]
[1768927000326,3.65700872,3024.3,3022.4,0.16558]
[1768927000525,3.65700872,3024.1,3022.7,0.16557]
[1768927000721,3.65700872,3024.1,3022.8,5.597]
[1768927001824,0.00367029,3024.4,3022.8,5.597]
[1768927002014,0.00367029,3024.4,3022.9,0.16556]
[1768927002725,0.00367029,3024.4,3023.0,0.16555]
[1768927003926,3.50838387,3024.4,3022.7,1.7753889]
[1768927004224,3.50838387,3024.4,3021.9,3.63471892]
[1768927004225,3.67020358,3024.1,3022.4,3.311]
[1768927004531,0.45622908,3024.0,3022.4,3.47658]
[1768927004733,3.50471358,3024.3,3022.5,0.16558]
[1768927005522,3.50471358,3024.3,3022.6,0.16557]
[1768927005827,3.50471358,3024.3,3022.7,0.16557]
[1768927006227,3.50471358,3024.3,3022.8,0.16556]
[1768927006430,3.50471358,3024.3,3022.9,0.16555]
[1768927008825,3.50471358,3024.3,3023.0,2.284]
[1768927009027,3.50471358,3024.3,3023.0,4.05792361]
[1768927010236,0.45822294,3024.2,3023.0,4.05792361]
[1768927010433,3.50471358,3024.3,3023.0,4.05792361]
[1768927010626,0.45820747,3024.2,3023.0,4.05792361]
[1768927010837,3.50471358,3024.3,3023.0,4.05792361]
[1768927011028,0.45820688,3024.2,3023.0,4.05792361]
[1768927011227,3.50471358,3024.3,3023.0,1.77392361]
[1768927011433,0.45841434,3024.2,3023.1,2.283]
[1768927011635,3.50471358,3024.3,3023.1,2.283]
[1768927011935,0.45843568,3024.2,3023.1,2.283]
[1768927012237,0.45866588,3024.1,3023.1,2.283]
[1768927012435,3.50471358,3024.3,3023.1,2.283]
[1768927012635,0.45866144,3024.2,3023.1,2.283]
[1768927012836,3.50471358,3024.3,3023.1,2.283]
[1768927013037,0.45866376,3024.2,3023.4,1.77392361]
[1768927013227,0.00367029,3024.4,3023.4,1.77392361]
[1768927013430,0.45895886,3024.3,3023.4,1.77392361]
[1768927013626,0.45895886,3024.2,3023.4,1.77392361]
[1768927013837,3.45820804,3024.4,3023.0,1.77392361]
[1768927014042,3.91361234,3024.3,3023.0,1.77392361]
[1768927014338,3.45453775,3024.1,3023.0,4.05592361]
[1768927014537,3.91361234,3024.0,3022.8,0.78]
[1768927014839,3.45453775,3023.8,3022.8,0.78]
[1768927015032,3.45453775,3023.6,3022.8,0.78]
[1768927015232,0.45907459,3023.5,3022.8,0.78]
[1768927015531,3.91361234,3023.5,3022.2,1.77392361]
[1768927015733,3.91361234,3023.4,3022.0,0.00287251]
[1768927015931,3.45453775,3023.2,3022.0,0.00287251]
[1768927016132,3.91361234,3023.1,3022.0,0.00287251]
[1768927016339,3.45453775,3022.9,3022.0,0.00287251]
[1768927016534,0.45907459,3022.8,3022.0,0.00287251]
[1768927017244,3.91361234,3022.8,3022.0,0.00287251]
[1768927017429,0.45907459,3022.7,3022.0,0.00287251]
[1768927017939,0.45907459,3022.7,3020.8,4.3252917]
[1768927017940,3.91361234,3022.7,3020.8,4.3252917]
[1768927018139,3.45453775,3022.5,3020.8,2.44667]
[1768927018347,3.45453775,3022.3,3020.8,2.44667]
[1768927018536,1.93948361,3022.9,3020.9,1.77392361]
[1768927018537,3.91361234,3022.2,3020.9,1.77392361]
[1768927018736,0.45907459,3022.1,3020.9,1.77392361]
[1768927018931,0.45907459,3022.0,3020.9,1.77777451]
[1768927019137,0.00353434,3022.1,3020.9,1.77777451]
[1768927020245,0.00353434,3022.1,3021.3,1.77392361]
[1768927020441,3.45453775,3022.7,3021.3,1.77392361]
[1768927020641,0.45833606,3022.6,3021.3,1.77392361]
[1768927020846,0.45833606,3022.5,3021.3,1.77392361]
[1768927021147,0.45833606,3022.4,3021.3,1.77392361]
[1768927021346,0.45822858,3022.3,3021.3,1.77392361]
[1768927021644,0.00272215,3022.4,3021.3,1.77392361]
[1768927021944,0.45822336,3022.3,3021.3,1.77392361]
[1768927022147,0.00272215,3022.4,3021.3,1.77392361]
[1768927024447,3.45453775,3022.2,3020.9,0.0038509]
[1768927024743,3.45453775,3022.0,3020.9,0.0038509]
[1768927024947,0.00272215,3022.4,3020.9,0.0038509]
[1768927024948,3.45453775,3021.8,3020.9,0.0038509]
[1768927026945,3.45453775,3022.3,3020.9,0.0038509]
[1768927027144,0.45718146,3022.2,3020.9,0.0038509]
[1768927027352,3.45453775,3022.3,3021.2,1.77392361]
[1768927027749,3.45453775,3022.1,3020.9,0.0038509]
[1768927030167,0.00272215,3022.4,3021.2,1.77392361]
[1768927031256,3.4572599,3022.4,3021.2,1.77392361]
[1768927032365,3.45453775,3022.9,3021.6,1.77392361]
[1768927033049,0.45652889,3022.8,3021.3,0.16564]
[1768927033248,3.45453775,3022.7,3021.3,0.16564]
[1768927033450,3.45755034,3022.7,3021.3,0.16564]
[1768927033650,0.00301259,3022.7,3021.4,0.16564]
[1768927033850,0.00301259,3022.7,3021.6,1.77392361]
[1768927034460,5.08592361,3024.1,3022.0,1.77392361]
[1768927034461,3.45453775,3023.3,3022.0,1.77392361]
[1768927034647,3.45453775,3023.1,3021.6,1.77392361]
[1768927035264,3.45453775,3023.1,3021.7,0.16562]
[1768927035464,3.45765416,3023.1,3021.7,0.16562]
[1768927036349,3.45765416,3023.1,3021.2,2.55392361]
[1768927036549,3.67553218,3022.9,3021.3,5.59]
[1768927036755,3.67553218,3022.9,3021.4,2.278]
[1768927037264,3.67553218,3022.9,3021.6,1.77392361]
[1768927038159,3.67553218,3022.9,3021.6,1.93955361]
[1768927038362,0.00311641,3023.1,3021.6,1.93955361]
[1768927039765,3.67864859,3023.1,3021.6,1.93955361]
[1768927039958,3.67864859,3023.1,3021.7,2.278]
[1768927040158,3.67864859,3023.1,3021.6,1.93955361]
[1768927040356,4.13307645,3023.0,3021.6,4.21655361]
[1768927040562,3.67553218,3023.0,3021.6,1.77392361]
[1768927040767,0.00311641,3023.1,3021.4,0.78]
[1768927040768,3.67553218,3022.8,3021.4,0.78]
[1768927040964,3.67553218,3022.8,3021.5,2.277]
[1768927041366,3.67553218,3022.6,3021.0,0.78]
[1768927041568,3.67553218,3022.4,3021.0,0.78]
[1768927041760,3.67553218,3022.2,3021.0,0.78]
[1768927041957,3.67553218,3022.2,3020.9,2.2808509]
[1768927042165,3.67553218,3022.7,3020.9,2.2808509]
[1768927042365,0.45765623,3022.6,3020.9,2.4465109]
[1768927042665,0.45765623,3022.5,3021.2,1.77392361]
[1768927042862,3.67864859,3023.1,3021.2,1.93957361]
[1768927043067,0.45773505,3023.0,3021.3,0.78]
[1768927043256,0.45773505,3022.9,3021.4,0.16564]
[1768927043459,0.45773505,3022.8,3021.4,0.16564]
[1768927043661,0.45773505,3022.7,3021.4,0.16564]
[1768927043966,0.45773505,3022.6,3021.5,2.277]
[1768927044165,0.45870824,3022.5,3021.5,2.277]
[1768927044364,3.67553218,3022.8,3021.5,2.277]
[1768927044666,0.45879239,3022.7,3021.5,2.44263]
[1768927044866,0.45879239,3022.6,3021.6,1.77392361]
[1768927045068,0.45884955,3022.5,3021.6,1.77392361]
[1768927045265,0.00311641,3023.1,3021.6,1.77392361]
[1768927045465,0.45917271,3023.0,3021.6,1.77392361]
[1768927045662,4.13486113,3022.9,3021.6,1.77392361]
[1768927045866,3.67553218,3022.7,3021.6,1.77392361]
[1768927046067,4.13486113,3022.6,3021.5,0.16563]
[1768927046363,4.13486113,3022.5,3021.5,0.16563]
[1768927046564,0.45932895,3022.4,3021.4,2.277]
[1768927047972,4.13486113,3022.4,3021.3,2.277]
[1768927048273,0.45932895,3022.3,3021.3,2.277]
[1768927051064,0.45932895,3022.3,3021.2,1.77392361]
[1768927051263,4.13486113,3022.3,3021.1,3.057]
[1768927051467,0.45932895,3022.2,3021.1,3.057]
[1768927053977,0.45932895,3022.1,3021.1,3.057]
[1768927054274,0.45932895,3022.0,3021.1,3.057]
[1768927054474,3.67553218,3022.6,3021.2,1.77392361]
[1768927054676,0.4596537,3022.5,3021.2,1.77392361]
[1768927054869,0.4596537,3022.4,3021.2,1.77392361]
[1768927055069,0.4596537,3022.3,3021.2,1.77392361]
[1768927055269,0.4596537,3022.2,3021.2,1.77392361]
[1768927055466,0.4596537,3022.1,3021.2,1.77392361]
[1768927055677,3.67553218,3022.6,3021.2,1.77392361]
[1768927055969,0.45984513,3022.5,3021.2,1.93957361]
[1768927056177,0.45984513,3022.4,3021.2,1.93957361]
[1768927056365,0.45984513,3022.3,3021.2,1.93957361]
[1768927056568,0.45984513,3022.2,3021.2,1.93957361]
[1768927056768,3.67553218,3022.8,3021.2,1.93957361]
[1768927056970,0.46002243,3022.7,3021.2,1.93957361]
[1768927057166,0.46002243,3022.6,3021.3,0.16564]
[1768927057374,0.46002243,3022.5,3021.6,1.77392361]
[1768927057574,0.46002243,3022.4,3021.6,1.77392361]
[1768927057775,0.46002243,3022.3,3021.6,1.77392361]
[1768927057971,3.67553218,3022.8,3021.6,1.77392361]
[1768927058482,0.00311641,3023.1,3021.6,1.77392361]
[1768927058675,3.67864859,3023.1,3021.6,1.77392361]
[1768927058975,3.67864859,3023.1,3021.7,2.276]
[1768927059179,3.67553218,3022.9,3021.7,2.276]
[1768927059679,3.67553218,3022.9,3021.5,2.276]
[1768927060779,3.67553218,3022.9,3021.6,1.77392361]